bitfinex/quotes_ETHUSD_20240701
["timestamp","ask_amount","ask_price","bid_price","bid_amount"]
[1719814338257,12.59856754,3493.5,3493.4,5.7251]
[1719814338762,12.39035,3493.5,3493.4,5.7251]
[1719814339371,12.59856787,3493.5,3493.4,5.7251]
[1719814339972,34.69233613,3493.5,3493.4,2e-05]
[1719814340281,26.63716713,3493.5,3493.4,2e-05]
[1719814340482,26.06416713,3493.5,3493.4,2e-05]
[1719814341263,14.69215113,3493.5,3493.4,2e-05]
[1719814341470,15.49515113,3493.5,3493.4,2e-05]
[1719814342155,14.69215113,3493.5,3493.4,2e-05]
[1719814342359,15.49515113,3493.5,3493.4,2e-05]
[1719814342556,14.69215113,3493.5,3493.4,2e-05]
[1719814342764,15.49515113,3493.5,3493.4,2e-05]
[1719814342964,15.286931,3493.5,3493.4,2e-05]
[1719814343276,15.49515476,3493.5,3493.4,2e-05]
[1719814343876,14.69215476,3493.5,3493.4,2e-05]
[1719814344081,12.39035,3493.5,3493.4,2e-05]
[1719814347296,12.5985612,3493.5,3493.4,2e-05]
[1719814349264,12.39035,3493.5,3493.4,2e-05]
[1719814349463,12.59855985,3493.5,3493.4,2e-05]
[1719814352597,12.39035,3493.5,3493.4,2e-05]
[1719814352802,12.59856058,3493.5,3493.4,2e-05]
[1719814354471,11.79556058,3493.5,3493.4,2e-05]
[1719814354670,12.59856058,3493.5,3493.4,2e-05]
[1719814355199,12.39035,3493.5,3493.4,2e-05]
[1719814355506,12.59856136,3493.5,3493.4,2e-05]
[1719814355876,12.39035,3493.5,3493.4,2e-05]
[1719814356078,12.5985628,3493.5,3493.4,2e-05]
[1719814357602,12.39035,3493.5,3493.4,2e-05]
[1719814358106,12.59856163,3493.5,3493.4,2e-05]
[1719814358603,8.7249,3493.5,3493.4,2e-05]
[1719814358801,9.5279,3493.5,3493.4,2e-05]
[1719814359101,8.7249,3493.5,3493.4,2e-05]
[1719814359400,9.5279,3493.5,3493.4,2e-05]
[1719814359590,8.7249,3493.5,3493.4,2e-05]
[1719814359904,9.5279,3493.5,3493.4,2e-05]
[1719814361892,9.7361053,3493.5,3493.4,2e-05]
[1719814362287,9.73610527,3493.5,3493.4,2e-05]
[1719814362489,9.73610528,3493.5,3493.4,2e-05]
[1719814362690,12.59855528,3493.5,3493.4,2e-05]
[1719814363098,13.28834592,3493.5,3493.4,2e-05]
[1719814363622,13.83834592,3493.5,3493.4,2e-05]
[1719814365344,13.63014064,3493.5,3493.4,2e-05]
[1719814365633,13.83836821,3493.5,3493.4,2e-05]
[1719814367409,13.83836943,3493.5,3493.4,2e-05]
[1719814368709,13.83836982,3493.5,3493.4,2e-05]
[1719814369397,13.03536982,3493.5,3493.4,2e-05]
[1719814369597,13.83836982,3493.5,3493.4,2e-05]
[1719814370098,16.70081982,3493.5,3493.4,2e-05]
[1719814371835,46.74692203,3493.5,3493.4,2e-05]
[1719814372154,45.63312053,3493.5,3493.4,2e-05]
[1719814372364,45.63312102,3493.5,3493.4,2e-05]
[1719814372633,42.77067102,3493.5,3493.4,2e-05]
[1719814372997,39.23322302,3493.5,3493.4,2e-05]
[1719814373401,37.30850102,3493.5,3493.4,2e-05]
[1719814373651,34.40133202,3493.5,3493.4,2e-05]
[1719814374905,37.2637887,3493.5,3493.4,2e-05]
[1719814375232,37.26381578,3493.5,3493.4,2e-05]
[1719814376096,35.04789678,3493.5,3493.4,2e-05]
[1719814377101,35.25689678,3493.5,3493.4,2e-05]
[1719814378302,35.25688063,3493.5,3493.4,2e-05]
[1719814379204,34.71994732,3493.5,3493.4,2e-05]
[1719814379523,33.24812832,3493.5,3493.4,2e-05]
[1719814380209,32.85195663,3493.5,3493.4,2e-05]
[1719814381023,32.85208134,3493.5,3493.4,2e-05]
[1719814381246,19.01419434,3493.5,3493.4,2e-05]
[1719814381415,17.40477693,3493.5,3493.4,2e-05]
[1719814381616,41.77125693,3493.5,3493.4,2e-05]
[1719814382940,43.17243266,3493.5,3493.4,2e-05]
[1719814383100,43.38067421,3493.5,3493.4,2e-05]
[1719814383505,43.7768459,3493.5,3493.4,2e-05]
[1719814385541,42.37567017,3493.5,3493.4,2e-05]
[1719814385846,42.16742862,3493.5,3493.4,2e-05]
[1719814386938,41.89642262,3493.5,3493.4,2e-05]
[1719814387239,41.41767262,3493.5,3493.4,2e-05]
[1719814387446,43.02709177,3493.5,3493.4,2e-05]
[1719814388237,42.63092008,3493.5,3493.4,2e-05]
[1719814389013,42.63091817,3493.5,3493.4,2e-05]
[1719814389333,42.63091794,3493.5,3493.4,2e-05]
[1719814391643,19.01419394,3493.5,3493.4,2e-05]
[1719814391847,48.43032394,3493.5,3493.4,2e-05]
[1719814392049,19.01419394,3493.5,3493.4,2e-05]
[1719814392216,48.66087494,3493.5,3493.4,2e-05]
[1719814392546,46.86087494,3493.5,3493.4,2e-05]
[1719814392751,45.25145793,3493.5,3493.4,2e-05]
[1719814393052,46.86088439,3493.5,3493.4,2e-05]
[1719814394550,45.85602939,3493.5,3493.4,2e-05]
[1719814396755,45.85602941,3493.5,3493.4,2e-05]
[1719814399316,44.24660293,3493.5,3493.4,2e-05]
[1719814399516,45.8560293,3493.5,3493.4,2e-05]
[1719814399850,45.85603132,3493.5,3493.4,2e-05]
[1719814401319,45.05303132,3493.5,3493.4,2e-05]
[1719814401520,45.85603132,3493.5,3493.4,2e-05]
[1719814402963,45.85602852,3493.5,3493.4,2e-05]
[1719814405954,45.85606002,3493.5,3493.4,2e-05]
[1719814406293,45.85605989,3493.5,3493.4,2e-05]
[1719814409190,44.24663443,3493.5,3493.4,2e-05]
[1719814409391,45.85605832,3493.5,3493.4,2e-05]
[1719814412589,45.85606428,3493.5,3493.4,2e-05]
[1719814415664,44.24663443,3493.5,3493.4,2e-05]
[1719814415912,45.85606387,3493.5,3493.4,2e-05]
[1719814416208,44.45487689,3493.5,3493.4,2e-05]
[1719814416358,45.85606395,3493.5,3493.4,2e-05]
[1719814417565,51.32514495,3493.5,3493.4,2e-05]
[1719814418792,49.92395795,3493.5,3493.4,2e-05]
[1719814419002,49.71571543,3493.5,3493.4,2e-05]
[1719814419161,51.32514579,3493.5,3493.4,2e-05]
[1719814422289,51.32514567,3493.5,3493.4,2e-05]
[1719814425294,49.71571543,3493.5,3493.4,2e-05]
[1719814425596,51.32526664,3493.5,3493.4,2e-05]
[1719814425800,51.32526574,3493.5,3493.4,2e-05]
[1719814426165,51.32539874,3493.5,3493.4,2e-05]
[1719814426367,51.32539796,3493.5,3493.4,2e-05]
[1719814427276,51.6224853,3493.5,3493.4,2e-05]
[1719814428493,51.62249721,3493.5,3493.4,2e-05]
[1719814429082,50.7101472,3493.5,3493.4,2e-05]
[1719814429279,51.62250771,3493.5,3493.4,2e-05]
[1719814431491,51.62250692,3493.5,3493.4,2e-05]
[1719814431817,51.62251771,3493.5,3493.4,2e-05]
[1719814432009,56.20696771,3493.5,3493.4,2e-05]
[1719814432215,11.73834,3493.0,3492.9,2.523]
[1719814432387,48.61050003,3493.0,3492.9,2.523]
[1719814432592,48.32716903,3493.0,3492.9,2.523]
[1719814432981,49.72871087,3493.0,3492.9,2.523]
[1719814433616,50.64107138,3493.0,3492.9,2.523]
[1719814433821,51.04396202,3493.0,3492.9,2.523]
[1719814434109,2.86332,3492.5,3491.5,2.3899]
[1719814434318,2.86332,3492.5,3491.7,2.4324]
[1719814434319,0.803,3492.1,3491.7,2.4324]
[1719814434513,0.20826952,3492.0,3491.7,2.4324]
[1719814434819,0.803,3492.1,3491.7,2.4324]
[1719814435015,1.44487604,3492.0,3491.7,2.4324]
[1719814435235,2.86377,3491.9,3491.8,0.27476566]
[1719814435385,5.86377,3491.9,3491.8,2.4007]
[1719814440748,3.0,3491.9,3491.8,2.4007]
[1719814440957,3.0,3492.0,3491.8,2.4007]
[1719814442848,5.86369,3492.0,3491.8,2.4007]
[1719814451545,2.86377,3491.9,3491.8,2.4007]
[1719814451748,5.86377,3491.9,3491.8,2.64077]
[1719814472616,3.0,3491.9,3491.8,2.64077]
[1719814473974,3.0,3491.9,3491.8,8.36837]
[1719814475612,3.0,3491.9,3491.8,9.17137]
[1719814475782,5.86336,3492.4,3491.9,2.3055]
[1719814475976,4.44460843,3492.3,3492.1,2.3055]
[1719814476183,3.0,3492.3,3492.2,5.727]
[1719814476406,3.0,3492.3,3492.2,8.0013]
[1719814478393,7.30806004,3492.3,3492.2,8.0013]
[1719814478715,5.86344,3492.3,3492.2,8.0013]
[1719814479282,7.30806744,3492.3,3492.2,8.0013]
[1719814479482,5.86344,3492.3,3492.2,8.0013]
[1719814480077,5.86344,3492.3,3492.2,5.727]
[1719814480278,7.30809126,3492.3,3492.2,5.727]
[1719814481932,7.30816132,3492.3,3492.2,5.727]
[1719814485129,7.30817289,3492.3,3492.2,5.727]
[1719814485934,10.17161289,3492.3,3492.2,5.727]
[1719814488340,8.72688,3492.3,3492.2,5.727]
[1719814488534,10.17161783,3492.3,3492.2,5.727]
[1719814491428,8.72688,3492.3,3492.2,5.727]
[1719814491640,10.17161923,3492.3,3492.2,5.727]
[1719814491954,10.17162009,3492.3,3492.2,5.727]
[1719814494645,10.1717291,3492.3,3492.2,5.727]
[1719814495046,22.7338181,3492.3,3492.2,5.727]
[1719814495337,19.4652281,3492.3,3492.2,5.727]
[1719814497137,20.0152281,3492.3,3492.2,5.727]
[1719814497334,19.6956021,3492.3,3492.2,5.727]
[1719814497642,18.250753,3492.3,3492.2,5.727]
[1719814497870,19.69574618,3492.3,3492.2,5.727]
[1719814499242,18.250753,3492.3,3492.2,5.727]
[1719814499437,19.69573801,3492.3,3492.2,5.727]
[1719814500738,18.250753,3492.3,3492.2,5.727]
[1719814500936,19.69576352,3492.3,3492.2,5.727]
[1719814501137,20.09865416,3492.3,3492.2,5.727]
[1719814501358,22.30366923,3492.3,3492.2,5.727]
[1719814501849,25.48338832,3492.3,3492.2,5.727]
[1719814502061,25.77028832,3492.3,3492.2,5.727]
[1719814502754,28.63372832,3492.3,3492.2,5.727]
[1719814502963,8.59227,3491.5,3491.4,0.76266631]
[1719814503177,13.84028052,3491.5,3491.4,0.76266631]
[1719814503336,14.12754452,3491.5,3491.4,0.76266631]
[1719814503845,14.12764302,3491.5,3491.4,0.76266631]
[1719814506224,12.68217,3491.5,3491.4,0.76266631]
[1719814506957,18.46180284,3491.5,3491.4,0.76266631]
[1719814508059,17.01632,3491.5,3491.4,0.76266631]
[1719814508264,21.70183318,3491.5,3491.4,0.76266631]
[1719814508973,20.25631064,3491.5,3491.4,0.76266631]
[1719814509675,45.57391564,3491.5,3491.4,0.76266631]
[1719814510777,48.43800564,3491.5,3491.4,0.76266631]
[1719814511246,47.63500564,3491.5,3491.4,0.76266631]
[1719814511433,48.43800564,3491.5,3491.4,0.76266631]
[1719814512164,48.21278364,3491.5,3491.4,0.76266631]
[1719814514460,0.40288433,3491.4,3490.4,2.2847]
[1719814514654,0.803,3490.5,3490.4,2.2847]
[1719814515860,6.53282,3490.5,3490.4,2.2847]
[1719814516169,9.53282,3490.5,3490.4,2.2847]
[1719814518070,8.72982,3490.5,3490.4,2.2847]
[1719814521081,2.86527,3490.1,3489.3,2.471]
[1719814521374,2.86527,3490.1,3489.7,2.4949]
[1719814523098,3.00727,3490.1,3489.7,2.4949]
[1719814524112,3.00727,3490.1,3489.9,2.4636]
[1719814524459,3.00727,3490.1,3490.0,4.9257]
[1719814524659,6.00727,3490.1,3490.0,4.9257]
[1719814526325,9.67554,3490.1,3490.0,4.9257]
[1719814526661,6.00727,3490.1,3490.0,4.9257]
[1719814526983,6.00727,3490.1,3490.0,7.3422]
[1719814527592,8.87254,3490.1,3490.0,4.9257]
[1719814528097,3.142,3490.1,3490.0,7.3521]
[1719814528265,3.142,3490.1,3490.0,8.16761]
[1719814528664,6.00724,3490.1,3490.0,8.16761]
[1719814528991,6.00724,3490.1,3490.0,7.3521]
[1719814529194,3.142,3490.1,3490.0,7.3521]
[1719814529367,0.142,3490.1,3490.0,7.3521]
[1719814529566,3.142,3490.1,3490.0,7.3521]
[1719814530081,0.142,3490.1,3490.0,7.3521]
[1719814530889,0.142,3490.1,3490.0,8.45665322]
[1719814537614,0.142,3490.1,3490.0,7.65365322]
[1719814537791,0.142,3490.1,3490.0,7.3521]
[1719814538889,3.00724,3490.1,3490.0,4.9257]
[1719814539102,6.00724,3490.1,3490.0,4.9257]
[1719814543009,14.88042,3490.1,3490.0,4.9257]
[1719814543191,8.87248,3490.1,3490.0,4.9257]
[1719814544913,11.73772,3490.1,3490.0,4.9257]
[1719814545213,9.67548,3490.1,3490.0,4.9257]
[1719814552937,8.87248,3490.1,3490.0,4.9257]
[1719814553113,9.67548,3490.1,3490.0,4.9257]
[1719814557154,8.87248,3490.1,3490.0,4.9257]
[1719814557455,6.00724,3490.1,3490.0,4.9257]
[1719814559826,8.87248,3490.1,3490.0,4.9257]
[1719814563734,9.67548,3490.1,3490.0,4.9257]
[1719814566702,24.556263,3490.1,3490.0,4.9257]
[1719814566897,20.49503911,3490.1,3490.0,4.9257]
[1719814567237,17.78931606,3490.1,3490.0,4.9257]
[1719814570224,17.78940335,3490.1,3490.0,4.9257]
[1719814570602,16.343098,3490.1,3490.0,4.9257]
[1719814570806,17.78941008,3490.1,3490.0,4.9257]
[1719814571506,16.343098,3490.1,3490.0,4.9257]
[1719814571936,17.78939943,3490.1,3490.0,4.9257]
[1719814572442,17.78940469,3490.1,3490.0,4.9257]
[1719814573476,17.78940223,3490.1,3490.0,4.9257]
[1719814573776,16.343098,3490.1,3490.0,4.9257]
[1719814573942,17.78940024,3490.1,3490.0,4.9257]
[1719814576938,16.343098,3490.1,3490.0,4.9257]
[1719814577171,17.78941255,3490.1,3490.0,4.9257]
[1719814578342,25.37397424,3490.1,3490.0,0.62772]
[1719814578541,22.50873424,3490.1,3490.0,0.62772]
[1719814579239,21.29131255,3490.1,3490.0,0.62772]
[1719814579506,20.37131255,3490.1,3490.0,0.62772]
[1719814579993,20.37148862,3490.1,3490.0,0.62772]
[1719814580502,20.37147023,3490.1,3490.0,0.62772]
[1719814580794,11.15625223,3490.1,3490.0,0.62772]
[1719814581104,11.95925223,3490.1,3490.0,0.62772]
[1719814582803,17.80106723,3490.1,3490.0,0.62772]
[1719814582946,8.87248,3490.1,3490.0,0.62772]
[1719814583142,11.12172807,3490.1,3490.0,0.62772]
[1719814583359,11.12172161,3490.1,3490.0,0.62772]
[1719814584170,13.32151961,3490.1,3490.0,0.62772]
[1719814584383,11.12172161,3490.1,3490.0,0.62772]
[1719814584750,13.62152561,3490.1,3490.0,0.62772]
[1719814585311,14.81452561,3490.1,3490.0,0.62772]
[1719814585449,15.10182561,3490.1,3490.0,0.62772]
[1719814585890,17.96706561,3490.1,3490.0,0.62772]
[1719814586288,17.96707909,3490.1,3490.0,0.62772]
[1719814586587,2.86575,3489.5,3488.5,2.3603]
[1719814586792,14.37402078,3490.1,3488.7,2.3603]
[1719814586793,2.86622,3489.0,3488.7,2.3603]
[1719814586959,3.0,3489.4,3488.7,2.3603]
[1719814587148,2.86622,3489.0,3488.7,2.3603]
[1719814587602,2.86623,3488.9,3488.7,2.3603]
[1719814587766,2.86623,3488.9,3488.7,2.7006756]
[1719814594019,2.86607,3489.1,3488.7,2.7006756]
[1719814594170,5.86616,3489.0,3488.7,2.7006756]
[1719814595168,3.0,3489.0,3488.9,0.803]
[1719814595518,3.0,3489.1,3489.0,2.3793]
[1719814599081,5.86606,3489.1,3489.0,2.3793]
[1719814608971,2.86623,3488.9,3488.8,2.2568]
[1719814617722,2.86623,3488.9,3488.5,2.4211]
[1719814617892,2.86623,3488.9,3488.5,2.747936]
[1719814620923,5.86611,3489.1,3488.5,2.747936]
[1719814621140,2.86615,3489.0,3488.5,2.747936]
[1719814621282,3.0,3488.9,3488.5,2.747936]
[1719814625046,2.86608,3489.1,3488.5,2.747936]
[1719814625350,3.0,3489.0,3488.7,2.4353]
[1719814625554,3.0,3489.0,3488.7,2.4926215]
[1719814625853,3.0,3489.1,3488.7,2.4926215]
[1719814626051,12.46274,3489.8,3489.1,2.3259]
[1719814626052,7.33,3489.8,3489.1,2.3259]
[1719814626259,7.33,3489.8,3489.0,0.803]
[1719814626260,1.44626594,3489.7,3489.3,2.372]
[1719814626453,0.142,3490.1,3489.8,2.372]
[1719814627683,3.142,3490.1,3489.8,2.372]
[1719814629302,3.142,3490.1,3489.8,2.6895]
[1719814629509,3.142,3490.1,3489.8,2.74680393]
[1719814632336,0.142,3490.1,3489.8,2.74680393]
[1719814634866,0.142,3490.1,3489.8,2.372]
[1719814639740,0.142,3490.1,3489.9,0.803]
[1719814639946,0.142,3490.1,3489.9,0.86030218]
[1719814644348,0.142,3490.1,3489.9,0.86029974]
[1719814644550,0.142,3490.1,3490.0,2.3808]
[1719814644748,0.142,3490.1,3490.0,2.69918]
[1719814648409,0.142,3490.1,3490.0,2.3808]
[1719814648584,0.142,3490.1,3490.0,2.43809815]
[1719814649688,0.142,3490.1,3490.0,2.3808]
[1719814654895,0.142,3490.1,3490.0,2.4380991]
[1719814657892,0.142,3490.1,3490.0,2.3808]
[1719814664108,3.00724,3490.1,3489.3,2.3999]
[1719814664420,5.42734,3490.1,3489.3,3.2029]
[1719814665493,5.42734,3490.1,3489.4,0.803]
[1719814665838,2.86543,3489.9,3489.4,0.803]
[1719814666902,2.86543,3489.9,3489.6,0.803]
[1719814667113,3.00724,3490.1,3489.8,0.803]
[1719814668518,0.142,3490.1,3489.8,0.803]
[1719814673353,3.142,3490.1,3489.8,0.803]
[1719814675966,0.142,3490.1,3489.8,0.803]
[1719814676244,0.142,3490.1,3489.8,0.86030055]
[1719814676651,0.142,3490.1,3489.8,0.803]
[1719814676943,3.142,3490.1,3489.8,0.803]
[1719814680762,0.142,3490.1,3489.8,0.803]
[1719814680930,0.142,3490.1,3489.8,1.13086]
[1719814681130,0.142,3490.1,3490.0,0.803]
[1719814683135,0.142,3490.1,3490.0,3.34889998]
[1719814683340,0.142,3490.1,3490.0,2.4886]
[1719814683567,0.142,3490.1,3490.0,3.2916]
[1719814683729,0.142,3490.1,3490.0,3.940102]
[1719814686263,0.142,3490.1,3490.0,3.99739838]
[1719814687337,0.142,3490.1,3490.0,3.940102]
[1719814689654,0.142,3490.1,3490.0,0.648502]
[1719814689855,0.142,3490.1,3490.0,0.803]
[1719814690961,0.142,3490.1,3489.9,0.803]
[1719814692579,0.142,3490.1,3490.0,2.3384]
[1719814702157,0.142,3490.1,3490.0,3.1414]
[1719814705204,0.142,3490.1,3489.8,0.32786]
[1719814705369,0.142,3490.1,3489.9,0.803]
[1719814710307,0.142,3490.1,3489.9,1.151986]
[1719814736437,0.142,3490.1,3490.0,0.05729807]
[1719814740548,0.142,3490.1,3490.0,2.48469807]
[1719814740766,12.13,3491.4,3490.0,2.48469807]
[1719814740767,2.3806,3492.0,3490.1,2.4274]
[1719814740918,2.86399,3491.7,3491.2,0.803]
[1719814741277,1.36684094,3491.6,3491.2,0.803]
[1719814741418,1.36684094,3491.5,3491.2,0.803]
[1719814741629,2.4512,3491.8,3491.4,0.803]
[1719814741821,2.4512,3491.8,3491.6,0.803]
[1719814742447,2.4512,3491.8,3491.4,0.803]
[1719814743016,5.4512,3491.8,3491.4,0.803]
[1719814743627,5.4512,3491.8,3491.2,0.803]
[1719814744154,8.31506,3491.8,3491.2,0.803]
[1719814745331,5.4512,3491.8,3491.4,0.803]
[1719814745643,2.4512,3491.8,3491.4,0.803]
[1719814746024,3.0,3491.9,3491.4,0.803]
[1719814746218,3.0,3491.9,3491.6,0.803]
[1719814746425,5.2725,3492.1,3491.6,0.803]
[1719814746426,3.0,3492.0,3491.6,0.803]
[1719814751580,3.0,3492.0,3491.8,0.803]
[1719814751961,5.4089,3492.1,3491.8,0.803]
[1719814752669,3.0,3492.1,3491.8,0.803]
[1719814753641,5.4656,3492.3,3491.8,0.803]
[1719814755055,3.0,3492.3,3491.8,0.803]
[1719814756383,5.86348,3492.3,3491.8,0.803]
[1719814757287,2.86354,3492.2,3491.8,0.803]
[1719814757448,3.0,3492.1,3491.8,0.803]
[1719814759253,5.86362,3492.1,3491.3,2.4409]
[1719814759475,5.86362,3492.1,3491.6,0.803]
[1719814763769,2.86369,3492.0,3491.4,0.530531]
[1719814763970,3.0,3491.9,3491.6,0.803]
[1719814768970,3.0,3491.9,3491.5,0.803]
[1719814769492,3.0,3491.9,3491.7,0.803]
[1719814773095,3.0,3492.1,3491.7,3.1982]
[1719814773296,3.0,3492.1,3492.0,0.803]
[1719814773497,5.86336,3492.4,3492.0,0.803]
[1719814773696,2.86336,3492.4,3492.0,0.803]
[1719814773900,3.0,3492.3,3492.0,0.803]
[1719814776468,3.0,3492.3,3492.0,1.12854739]
[1719814776701,3.0,3492.5,3492.0,1.12854739]
[1719814777893,3.0,3492.5,3492.1,2.3987]
[1719814780394,5.86327,3492.5,3492.1,2.3987]
[1719814785936,5.86327,3492.5,3492.0,1.12854739]
[1719814786227,2.86336,3492.4,3492.0,0.803]
[1719814786431,3.0,3492.3,3492.0,0.803]
[1719814787128,2.86353,3492.2,3491.6,2.4629]
[1719814787331,3.0,3492.1,3491.6,0.803]
[1719814787536,2.86408,3491.6,3490.9,2.4629]
[1719814787731,2.86408,3491.6,3491.1,0.803]
[1719814789203,2.86408,3491.6,3491.3,0.803]
[1719814790430,2.86397,3491.7,3491.2,0.803]
[1719814791632,2.86378,3491.9,3491.4,0.803]
[1719814791815,3.0,3491.8,3491.4,0.803]
[1719814792615,2.86398,3491.7,3491.4,0.803]
[1719814802847,2.86398,3491.7,3491.3,2.4013]
[1719814803043,2.86398,3491.7,3491.4,0.803]
[1719814804084,2.86403,3491.6,3491.3,0.32043]
[1719814804268,2.86403,3491.6,3491.1,0.803]
[1719814804884,2.86415,3491.5,3491.1,0.803]
[1719814814391,2.86418,3491.4,3491.1,0.803]
[1719814816685,2.86434,3491.3,3491.0,2.4774]
[1719814818669,2.86434,3491.3,3491.1,0.803]
[1719814827709,2.86434,3491.3,3490.3,2.4802]
[1719814827710,2.86472,3490.8,3490.3,2.4802]
[1719814827915,2.86472,3490.8,3490.4,0.286506]
[1719814828275,2.86472,3490.8,3490.5,0.803]
[1719814828813,2.86476,3490.7,3490.5,0.803]
[1719814831004,2.86465,3490.9,3490.5,0.803]
[1719814831207,2.86465,3490.9,3490.5,1.1599706]
[1719814833306,2.8647,3490.8,3490.5,1.1599706]
[1719814836615,5.1309,3490.8,3490.5,1.1599706]
[1719814836911,5.1309,3490.8,3489.9,0.28130779]
[1719814836912,2.86475,3490.7,3490.4,3.1019]
[1719814844505,2.86485,3490.6,3490.4,3.1019]
[1719814845804,2.86485,3490.6,3490.2,3.2534]
[1719814849193,2.86505,3490.4,3490.2,3.2534]
[1719814849400,2.86505,3490.4,3489.5,2.3213]
[1719814849401,2.86519,3490.2,3489.5,2.3213]
[1719814849592,2.86519,3490.2,3489.9,0.803]
[1719814852712,2.86519,3490.2,3489.8,2.3784]
[1719814853032,2.86525,3490.1,3490.0,0.803]
[1719814857734,2.86508,3490.3,3490.0,0.803]
[1719814857907,2.86508,3490.3,3490.0,1.12114]
[1719814860717,2.86508,3490.3,3490.2,0.803]
[1719814863407,2.86508,3490.3,3490.0,0.803]
[1719814871333,2.86494,3490.5,3490.0,0.803]
[1719814871539,5.865,3490.4,3490.0,0.803]
[1719814871726,5.865,3490.4,3490.0,1.12114]
[1719814889204,3.0,3490.4,3490.0,1.12114]
[1719814889481,5.86492,3490.5,3490.0,1.12114]
[1719814892651,5.86492,3490.5,3490.1,2.484]
[1719814896386,2.86503,3490.4,3489.9,2.2736]
[1719814898252,2.86503,3490.4,3489.9,2.58126]
[1719814900698,2.86509,3490.3,3489.9,2.58126]
[1719814904015,5.86492,3490.5,3490.2,0.803]
[1719814917104,3.0,3490.5,3490.3,2.3144]
[1719814917303,3.0,3490.6,3490.3,2.3144]
[1719814918019,3.0,3490.7,3490.3,2.3144]
[1719814920422,5.86476,3490.7,3490.3,2.3144]
[1719814921420,2.86506,3490.4,3490.0,2.3129]
[1719814923316,2.86513,3490.3,3490.0,2.3129]
[1719814924992,2.86516,3490.2,3490.0,2.3129]
[1719814925187,2.86516,3490.2,3489.5,2.4005]
[1719814925419,2.86516,3490.2,3489.9,0.803]
[1719814929198,2.86502,3490.4,3489.9,0.803]
[1719814932033,2.86508,3490.3,3489.9,0.803]
[1719814936805,2.86518,3490.2,3489.9,0.803]
[1719814937237,2.8653,3490.1,3489.8,2.4046]
[1719814937448,2.8653,3490.1,3489.2,3.46820807]
[1719814937449,2.86541,3489.9,3489.2,2.3072]
[1719814937739,2.86541,3489.9,3489.3,2.11255181]
[1719814938541,3.0,3490.0,3489.2,2.3072]
[1719814938542,2.86549,3489.8,3489.2,2.3072]
[1719814938705,2.86549,3489.8,3489.3,0.803]
[1719814943107,2.86549,3489.8,3489.2,2.3072]
[1719814943403,2.86549,3489.8,3489.3,0.803]
[1719814944418,2.86559,3489.7,3489.3,0.803]
[1719814944619,2.86559,3489.7,3489.3,1.11402]
[1719814947156,2.86567,3489.6,3489.3,1.11402]
[1719814948221,2.86567,3489.6,3489.3,0.31102]
[1719814948429,2.86567,3489.6,3489.3,1.11402]
[1719814954321,2.86542,3489.9,3489.3,1.11402]
[1719814954522,3.0,3490.0,3489.6,0.803]
[1719814954727,2.86526,3490.1,3489.6,0.803]
[1719814955071,2.86546,3489.9,3489.6,0.803]
[1719814958347,2.86546,3489.9,3489.5,2.2954]
[1719814958348,3.0,3490.0,3489.8,0.803]
[1719814965530,3.0,3490.0,3489.7,2.4095]
[1719814965736,3.0,3490.0,3489.7,3.2125]
[1719814971383,3.0,3490.0,3489.7,3.5679622]
[1719814971578,3.0,3490.2,3489.7,3.5679622]
[1719814974359,3.0,3490.2,3489.7,3.2125]
[1719814977749,5.86501,3490.4,3489.7,3.2125]
[1719814980745,2.86508,3490.3,3489.7,3.2125]
[1719814980950,3.0,3490.2,3489.7,3.2125]
[1719814991760,3.0,3490.2,3489.8,2.294]
[1719814993263,0.75,3490.0,3489.8,2.294]
[1719814997884,3.75,3490.0,3489.8,2.294]
[1719815000382,2.86552,3489.8,3489.1,2.4082]
[1719815000698,3.75,3490.0,3489.3,0.803]
[1719815000699,2.86558,3489.7,3489.3,0.803]
[1719815000879,2.86558,3489.7,3489.4,2.4082]
[1719815001304,2.86558,3489.7,3489.5,0.803]
[1719815002706,2.86558,3489.7,3489.4,2.3582]
[1719815002906,2.86558,3489.7,3489.4,3.1612]
[1719815004082,2.86558,3489.7,3489.4,2.3582]
[1719815004290,2.86558,3489.7,3489.4,3.1612]
[1719815006217,2.86569,3489.6,3489.4,3.1612]
[1719815006591,2.3768,3489.8,3489.0,9.7873]
[1719815006916,2.86604,3489.2,3489.0,3.2703]
[1719815008335,2.86588,3489.4,3489.0,3.2703]
[1719815008489,2.86588,3489.4,3489.2,0.803]
[1719815014237,2.8659,3489.3,3489.2,0.803]
[1719815014538,2.8659,3489.3,3489.0,3.2703]
[1719815015281,2.8659,3489.3,3489.0,2.4673]
[1719815015400,2.8659,3489.3,3489.0,3.2703]
[1719815017038,2.8659,3489.3,3489.0,0.803]
[1719815017255,2.8659,3489.3,3488.5,3.15704856]
[1719815017414,2.8659,3489.3,3489.0,0.803]
[1719815021852,2.8659,3489.3,3488.9,2.494]
[1719815022150,2.8659,3489.3,3489.1,0.803]
[1719815026669,2.86598,3489.2,3489.1,0.803]
[1719815027453,2.86598,3489.2,3488.6,1.63880186]
[1719815027454,2.86598,3489.2,3488.6,4.08570186]
[1719815027624,2.86598,3489.2,3488.7,0.803]
[1719815027973,2.86625,3488.9,3488.4,7.32]
[1719815028180,2.86625,3488.9,3488.5,0.803]
[1719815028971,2.86625,3488.9,3488.5,1.129156]
[1719815031428,2.86625,3488.9,3488.7,0.803]